bitfinex-derivatives/quotes_SOLF0:USTF0_20251222
["timestamp","ask_amount","ask_price","bid_price","bid_amount"]
[1766409797272,5.65639432,126.72,126.67,7.1084]
[1766409797480,0.05370443,126.71,126.68,0.05308273]
[1766409799195,0.05370443,126.71,126.68,7.16088273]
[1766409799595,0.05370443,126.71,126.68,0.05308273]
[1766409801101,3.60370443,126.71,126.68,0.00308273]
[1766409802687,0.05370443,126.71,126.68,0.00308273]
[1766409802891,0.00370443,126.71,126.68,0.00308273]
[1766409804100,5.65639432,126.76,126.71,7.1062]
[1766409804405,2.10639432,126.76,126.71,7.1062]
[1766409804594,2.10639432,126.77,126.71,7.1062]
[1766409804799,5.65639432,126.77,126.71,7.1062]
[1766409804997,3.55,126.77,126.72,7.1054]
[1766409805193,0.05297223,126.75,126.73,0.04969824]
[1766409807600,2.10639432,126.79,126.73,0.04969824]
[1766409807601,3.55,126.79,126.73,0.04969824]
[1766409808605,0.05255251,126.77,126.73,0.04969824]
[1766409809112,3.60255251,126.77,126.73,0.04969824]
[1766409809299,3.55,126.75,126.7,93.2]
[1766409810098,3.55,126.73,126.67,7.1082]
[1766409810311,0.05730147,126.71,126.69,0.00035897]
[1766409810714,5.65639432,126.75,126.69,0.00035897]
[1766409811104,3.55,126.75,126.69,9.51755897]
[1766409811709,0.05917516,126.73,126.69,9.51755897]
[1766409812813,95.30639432,126.77,126.7,9.5164]
[1766409813115,98.85639432,126.77,126.7,9.5164]
[1766409813915,0.0525149,126.75,126.72,0.05179297]
[1766409819711,3.3,126.74,126.67,95.55]
[1766409819908,5.40639432,126.74,126.67,95.55]
[1766409820710,0.05370302,126.72,126.69,0.05578993]
[1766409820910,2.10639432,126.76,126.69,2.45578993]
[1766409821123,2.10639432,126.76,126.69,2.4]
[1766409821316,5.40639432,126.76,126.69,2.4]
[1766409821623,5.40639432,126.76,126.71,7.1062]
[1766409821806,0.05936217,126.75,126.72,0.05064515]
[1766409824712,93.2,126.77,126.72,2.40064515]
[1766409825625,0.06046057,126.76,126.72,9.50614515]
[1766409826022,3.36046057,126.76,126.72,0.05064515]
[1766409826226,3.3,126.75,126.72,0.00064515]
[1766409829327,0.06046057,126.76,126.72,0.00064515]
[1766409830327,0.06046057,126.76,126.72,7.10624515]
[1766409833332,0.06046057,126.76,126.72,0.00064515]
[1766409834131,3.36046057,126.76,126.72,0.00064515]
[1766409837724,3.3,126.75,126.72,0.00064515]
[1766409837927,3.3,126.75,126.69,9.4469]
[1766409838827,0.06049004,126.73,126.71,0.05516467]
[1766409841230,3.36049004,126.73,126.68,7.1078]
[1766409841937,3.36049004,126.73,126.67,2.34]
[1766409842124,3.36049004,126.73,126.67,9.4484]
[1766409842321,3.36049004,126.73,126.69,0.05942899]
[1766409844440,3.36049004,126.73,126.65,9.5092]
[1766409844736,3.3,126.73,126.65,9.5092]
[1766409845038,6.58884778,126.72,126.65,9.5092]
[1766409845227,6.58884778,126.72,126.66,7.109]
[1766409845422,6.58884778,126.72,126.68,0.05622063]
[1766409845423,0.05193567,126.7,126.68,0.05622063]
[1766409848239,0.00193567,126.7,126.68,0.05622063]
[1766409849042,3.31,126.74,126.68,2.46622063]
[1766409850041,0.05612572,126.72,126.68,2.46622063]
[1766409850742,0.05612572,126.72,126.69,7.1072]
[1766409851552,0.05612572,126.72,126.68,2.46622063]
[1766409851933,0.05612572,126.72,126.68,0.05622063]
[1766409852542,3.36612572,126.72,126.68,0.05622063]
[1766409853132,3.36612572,126.72,126.65,7.1091]
[1766409853338,3.31,126.72,126.65,7.1091]
[1766409853739,3.31,126.72,126.66,7.109]
[1766409854234,0.05251585,126.7,126.68,0.05491332]
[1766409857348,3.36251585,126.7,126.64,93.18]
[1766409857635,3.36251585,126.7,126.64,95.7]
[1766409858246,3.36251585,126.7,126.66,0.05301259]
[1766409861045,3.36251585,126.7,126.66,0.00301259]
[1766409864543,0.05251585,126.7,126.66,0.00301259]
[1766409865951,3.36251585,126.7,126.66,0.00301259]
[1766409883553,3.44,126.69,126.66,0.00301259]
[1766409883758,3.44,126.67,126.59,2.57]
[1766409883964,3.44,126.66,126.59,2.57]
[1766409884761,0.05379446,126.64,126.61,0.05090862]
[1766409888660,3.44,126.62,126.56,2.57]
[1766409889364,3.44,126.62,126.56,9.6844]
[1766409889560,3.44,126.62,126.57,3.43]
[1766409889763,0.05150396,126.6,126.58,0.05629299]
[1766409898878,5.60054153,126.6,126.54,96.69]
[1766409899770,5.60054153,126.6,126.55,3.43]
[1766409901687,3.49150396,126.6,126.55,3.43]
[1766409902682,0.05150396,126.6,126.56,3.43]
[1766409904588,0.05150396,126.6,126.57,7.114]
[1766409906686,7.11,126.65,126.57,7.114]
[1766409906687,5.52903757,126.65,126.6,3.4]
[1766409906880,2.10903757,126.65,126.6,3.4]
[1766409907589,2.10903757,126.66,126.6,10.5124]
[1766409907889,0.05295668,126.64,126.62,0.05861901]
[1766409908891,0.00295668,126.64,126.62,3.45861901]
[1766409909185,3.42,126.69,126.62,3.45861901]
[1766409909688,5.52903757,126.69,126.62,3.45861901]
[1766409910083,0.06048003,126.67,126.63,10.5106]
[1766409910282,3.42,126.71,126.64,3.45975386]
[1766409910484,3.42,126.71,126.64,3.4]
[1766409911183,3.42,126.71,126.65,10.5094]
[1766409911383,0.05115725,126.69,126.66,0.05771796]
[1766409911889,3.42,126.74,126.66,3.45771796]
[1766409912191,93.28,126.76,126.66,3.45771796]
[1766409912192,2.10903757,126.75,126.67,3.4]
[1766409912982,0.05116563,126.72,126.7,0.05057776]
[1766409913179,96.7,126.76,126.7,3.45057776]
[1766409913384,2.10903757,126.77,126.7,3.45057776]
[1766409913796,2.10903757,126.75,126.7,0.05057776]
[1766409913992,3.42,126.74,126.67,3.4]
[1766409914196,0.04969885,126.72,126.69,0.05508207]
[1766409921801,3.42,126.78,126.7,3.4]
[1766409922012,5.52903757,126.78,126.7,3.4]
[1766409922303,3.3,126.77,126.7,3.4]
[1766409922694,3.3,126.77,126.71,7.1061]
[1766409922896,0.05063746,126.75,126.73,0.05307569]
[1766409926709,96.52,126.81,126.75,3.25]
[1766409927005,5.40903757,126.82,126.75,3.25]
[1766409927207,2.10903757,126.8,126.75,3.25]
[1766409927404,3.3,126.81,126.75,3.25]
[1766409927611,2.10903757,126.8,126.75,3.25]
[1766409927797,0.05514507,126.79,126.76,0.05474341]
[1766409928211,5.40903757,126.78,126.76,0.00474341]
[1766409928514,5.40903757,126.78,126.71,3.25]
[1766409929012,2.10903757,126.76,126.71,3.25]
[1766409929313,0.0534335,126.75,126.72,0.05706229]
[1766409930001,0.0534335,126.75,126.72,3.30706229]
[1766409930203,0.0034335,126.75,126.72,3.30706229]
[1766409931117,0.0034335,126.75,126.74,3.25]
[1766409931511,0.0034335,126.75,126.74,4.83]
[1766409934111,0.0034335,126.75,126.74,3.25]
[1766409934414,0.0034335,126.75,126.74,96.45]
[1766409939416,3.23,126.82,126.75,3.3]
[1766409939614,95.17335596,126.87,126.76,3.3]
[1766409939819,2.10903757,126.85,126.77,96.48]
[1766409940419,0.05180055,126.82,126.8,0.05675579]
[1766409940820,0.05180055,126.82,126.77,3.3]
[1766409941021,0.05180055,126.82,126.77,96.48]
[1766409941217,0.05180055,126.82,126.77,103.5828]
[1766409941514,0.05180055,126.82,126.77,10.4028]
[1766409941818,0.00180055,126.82,126.78,3.35152982]
[1766409942023,3.23,126.85,126.78,10.45382982]
[1766409942215,3.23,126.85,126.78,10.4023]
[1766409942921,0.05435683,126.83,126.8,0.06040344]
[1766409943322,3.28435683,126.83,126.76,100.2632]
[1766409943623,5.3933944,126.83,126.76,96.46]
[1766409943921,5.3933944,126.83,126.77,7.1027]
[1766409944320,5.3933944,126.83,126.79,0.05844471]
[1766409945217,3.23,126.82,126.79,0.05844471]
[1766409945427,3.23,126.82,126.76,96.46]
[1766409945923,3.23,126.82,126.76,103.5633]
[1766409946325,0.06058077,126.8,126.78,0.05013541]
[1766409950125,3.29058077,126.8,126.78,0.00013541]
[1766409950624,3.29058077,126.8,126.74,100.2643]
[1766409951531,3.29058077,126.8,126.76,0.05674544]
[1766409952617,3.29058077,126.8,126.73,3.3]
[1766409952823,3.29058077,126.8,126.72,3.3]
[1766409953024,3.23,126.8,126.72,3.3]
[1766409953728,0.05588068,126.77,126.75,0.05317851]
[1766409956437,3.28588068,126.77,126.75,0.00317851]
[1766409958635,0.05588068,126.77,126.75,0.00317851]
[1766409961539,3.23,126.81,126.75,0.00317851]
[1766409961737,3.23,126.81,126.75,3.30317851]
[1766409961934,96.31,126.83,126.75,3.30317851]
[1766409962129,96.31,126.83,126.75,3.3]
[1766409962428,96.31,126.83,126.77,10.4028]
[1766409962632,0.05126545,126.81,126.79,0.05970817]
[1766409966452,3.53126545,126.81,126.74,3.3]
[1766409966740,0.05126545,126.81,126.74,3.3]
[1766409967336,3.53126545,126.81,126.74,3.3]
[1766409967532,3.53126545,126.81,126.76,0.0531471]
[1766409974643,3.48,126.8,126.76,0.0531471]
[1766409976246,3.48,126.79,126.72,10.4056]
[1766409976435,3.48,126.79,126.67,37.9161]
[1766409976436,3.48,126.79,126.69,93.16]
[1766409976641,3.48,126.79,126.66,125.33139609]
[1766409976642,3.48,126.77,126.7,3.3]
[1766409977243,0.05289749,126.75,126.72,0.04537741]
[1766409986165,0.05289749,126.75,126.72,3.34537741]
[1766409986467,3.48,126.79,126.72,3.34537741]
[1766409987260,0.05204825,126.77,126.72,3.34537741]
[1766409987655,0.05204825,126.77,126.73,7.105]
[1766409989264,0.05204825,126.77,126.72,3.34537741]
[1766409990557,0.05204825,126.77,126.72,10.45067741]
[1766409990868,3.50204825,126.77,126.72,7.15067741]
[1766409991864,0.05204825,126.77,126.72,10.46067741]
[1766409992568,3.44,126.76,126.69,10.4173]
[1766409992864,3.44,126.75,126.69,10.4173]
[1766409993770,0.05975093,126.73,126.71,0.05289749]
[1766409995567,3.44,126.77,126.71,0.05289749]
[1766409996669,0.05963859,126.75,126.71,0.05289749]
[1766409997166,110.4666,126.8,126.72,3.3]
[1766409997167,3.48,126.79,126.72,3.3]
[1766409997668,3.48,126.79,126.7,110.5474]
[1766409997669,3.48,126.79,126.74,7.1045]
[1766409998256,3.48,126.79,126.75,0.05844356]
[1766409998257,0.05381065,126.78,126.75,0.05844356]
[1766409999165,10.5793,126.84,126.76,7.1034]
[1766409999371,3.48,126.83,126.76,10.4034]
[1766409999674,3.48,126.83,126.76,3.3]
[1766409999864,3.48,126.83,126.77,10.4028]
[1766410000265,3.48,126.83,126.79,0.0502713]
[1766410000266,0.05622981,126.81,126.79,0.0502713]
[1766410000874,6.76697822,126.85,126.79,0.0502713]
[1766410001870,0.05838997,126.83,126.79,0.0502713]
[1766410002067,0.05838997,126.83,126.79,3.3502713]
[1766410003175,3.53838997,126.83,126.79,0.0502713]
[1766410004969,0.05838997,126.83,126.79,0.0502713]
[1766410006264,0.05838997,126.83,126.79,3.3502713]
[1766410006560,3.28697822,126.87,126.79,3.3502713]
[1766410006561,6.76697822,126.87,126.79,3.3502713]
[1766410006765,6.76697822,126.87,126.79,3.3]
[1766410007467,0.0539642,126.84,126.82,0.05404574]
[1766410008773,6.76697822,126.87,126.82,0.05404574]
[1766410008982,96.38697822,126.89,126.82,3.35404574]
[1766410009778,99.86697822,126.89,126.82,3.35404574]
[1766410010077,0.05584527,126.87,126.82,3.35404574]
[1766410013070,0.05584527,126.87,126.82,10.45404574]
[1766410014180,0.05584527,126.87,126.83,3.3]
[1766410014583,0.05584527,126.87,126.83,10.3994]
[1766410016683,0.05584527,126.87,126.83,3.3]
[1766410019780,2.10106917,126.86,126.82,0.05404574]
[1766410019986,2.10106917,126.84,126.79,3.3]
[1766410020488,2.10106917,126.85,126.79,3.3]
[1766410021186,0.0041679,126.83,126.81,10.45237024]
[1766410021390,2.10106917,126.86,126.82,3.3]
[1766410021781,2.10106917,126.87,126.82,3.3]
[1766410022387,0.05063318,126.86,126.83,0.05843163]
[1766410027290,0.05063318,126.86,126.83,3.55843163]
[1766410027892,0.05063318,126.86,126.83,0.05843163]
[1766410028887,0.05063318,126.86,126.83,7.15793163]
[1766410029077,93.06,126.9,126.83,3.55843163]
[1766410029284,2.10106917,126.89,126.83,3.55843163]
[1766410029482,96.27,126.9,126.83,3.55843163]
[1766410029690,2.10106917,126.91,126.84,3.5]
[1766410030192,0.05624673,126.89,126.86,10.6563762]
[1766410031593,0.05624673,126.89,126.86,3.5587762]
[1766410031994,2.1573159,126.89,126.86,0.0587762]
[1766410035688,5.3673159,126.89,126.86,0.0587762]
[1766410035885,5.3673159,126.89,126.82,10.5995]
[1766410036295,5.3673159,126.89,126.83,10.5992]
[1766410036494,5.31106917,126.89,126.83,10.5992]
[1766410036794,0.05251369,126.87,126.85,0.05531447]
[1766410040690,2.15358286,126.87,126.82,10.5996]
[1766410041698,2.15358286,126.87,126.83,0.05131817]
[1766410042299,0.05251369,126.87,126.83,0.05131817]
[1766410042496,2.15358286,126.87,126.83,0.05131817]
[1766410043195,5.36358286,126.87,126.83,0.05131817]
[1766410043703,3.21,126.84,126.78,3.5]
[1766410043903,2.10106917,126.83,126.78,3.5]
[1766410044202,2.10106917,126.81,126.76,3.5]
[1766410044592,0.05053535,126.8,126.77,0.05735208]
[1766410044898,0.05053535,126.8,126.77,3.55735208]
[1766410045497,0.05053535,126.8,126.77,10.66015208]
[1766410050998,0.00053535,126.8,126.77,10.66015208]
[1766410052206,0.00053535,126.8,126.77,0.05735208]
[1766410053108,0.00053535,126.8,126.77,3.55735208]
[1766410053710,0.00053535,126.8,126.77,10.66015208]
[1766410056302,0.00053535,126.8,126.77,3.55735208]
[1766410063122,0.00053535,126.8,126.78,3.43]
[1766410063519,0.00053535,126.8,126.78,10.5323]
[1766410065110,0.00053535,126.8,126.79,7.1017]
[1766410066124,5.32106917,126.86,126.8,10.5311]
[1766410066322,3.22,126.86,126.8,10.5311]
[1766410066516,5.32106917,126.86,126.8,3.43]
[1766410067224,0.05686962,126.84,126.82,0.05697268]
[1766410087530,0.05686962,126.84,126.8,3.43]
[1766410087733,0.05686962,126.84,126.78,3.42]
[1766410088531,0.05686962,126.84,126.8,0.05362718]
[1766410088730,0.05414346,126.83,126.8,0.05362718]
[1766410093934,0.05414346,126.83,126.8,3.47362718]
[1766410095533,0.05414346,126.83,126.8,10.57472718]
[1766410096633,0.05414346,126.83,126.81,7.1005]
[1766410097145,3.52,126.86,126.81,3.42]
[1766410097749,3.52,126.86,126.82,7.1001]
[1766410098044,9.34214022,126.88,126.82,7.1001]
[1766410098251,0.05457979,126.85,126.83,0.05260809]
[1766410100752,3.52,126.88,126.83,10.57210809]
[1766410100945,3.52,126.88,126.83,3.47260809]
[1766410101552,0.05571976,126.87,126.83,3.47260809]
[1766410105054,3.57571976,126.87,126.83,0.05260809]
[1766410109067,0.05571976,126.87,126.83,3.47260809]
[1766410109455,0.05571976,126.87,126.83,10.57210809]
[1766410109856,0.05571976,126.87,126.83,3.47260809]
[1766410110654,0.05571976,126.87,126.84,7.0989]
[1766410117067,0.05571976,126.87,126.84,10.3889]
[1766410119172,0.05571976,126.87,126.85,7.0983]
[1766410119670,0.05571976,126.87,126.84,3.29]
[1766410120375,3.50571976,126.87,126.83,0.05260809]
[1766410124973,0.05571976,126.87,126.83,10.44210809]
[1766410126280,0.05571976,126.87,126.83,3.34260809]
[1766410137776,0.05571976,126.87,126.84,3.29]
[1766410137981,2.10128951,126.9,126.84,3.29]
[1766410138182,7.93383825,126.9,126.84,3.29]
[1766410138988,0.06041007,126.88,126.86,0.05945355]
[1766410142687,5.61169958,126.88,126.82,3.29]
[1766410142889,5.55128951,126.88,126.82,3.29]
[1766410143795,0.05581023,126.86,126.84,0.05188188]
[1766410148096,0.05581023,126.86,126.82,3.29]
[1766410149096,0.05581023,126.86,126.83,0.05302157]
[1766410157697,5.62709974,126.86,126.83,0.05302157]
[1766410158895,2.15709974,126.86,126.83,0.05302157]
[1766410164903,2.15709974,126.86,126.77,124.6897]
[1766410164904,2.10128951,126.84,126.8,3.38]
[1766410165803,0.0585054,126.83,126.81,0.05521182]
[1766410182912,2.10128951,126.85,126.81,3.51521182]
[1766410183518,3.44,126.87,126.81,3.51521182]
[1766410183519,2.10128951,126.86,126.81,3.51521182]
[1766410183924,0.05646037,126.85,126.81,3.51521182]
[1766410184222,0.05646037,126.85,126.82,7.0999]
[1766410184411,0.05646037,126.85,126.82,10.5599]
[1766410186927,110.3724,126.91,126.81,0.05521182]
[1766410186928,2.10128951,126.89,126.84,3.46]
[1766410187313,5.54128951,126.89,126.84,3.46]
[1766410187917,0.05507237,126.88,126.85,0.05574906]
[1766410190818,0.05507237,126.88,126.85,3.51574906]
[1766410193419,5.59636188,126.88,126.85,0.05574906]
[1766410194214,3.49507237,126.88,126.85,0.05574906]
[1766410194415,5.59636188,126.88,126.85,0.05574906]
[1766410195938,3.49507237,126.88,126.85,0.05574906]
[1766410197323,0.05507237,126.88,126.85,0.05574906]
[1766410201436,0.05507237,126.88,126.85,3.51574906]
[1766410204239,3.49507237,126.88,126.81,3.46]
[1766410204441,3.44,126.86,126.81,3.46]
[1766410205343,0.05897843,126.85,126.82,0.05990609]
[1766410207232,10.62737843,126.85,126.82,0.05990609]
[1766410208344,10.62737843,126.85,126.79,3.25]
[1766410209341,10.62737843,126.85,126.81,0.05051959]
[1766410209742,3.47,126.83,126.77,3.25]
[1766410210334,3.47,126.82,126.77,3.25]
[1766410210732,0.06026283,126.81,126.78,0.05728623]
[1766410220051,0.06026283,126.81,126.78,3.30728623]
[1766410222970,0.00026283,126.81,126.78,10.40928623]
[1766410232161,0.00026283,126.81,126.78,0.05728623]
[1766410232162,3.47026283,126.81,126.78,0.05728623]
[1766410233363,0.00026283,126.81,126.78,0.05728623]
[1766410233860,3.47,126.8,126.74,3.25]
[1766410234568,3.49,126.79,126.74,3.25]
[1766410234868,0.05191313,126.78,126.75,0.05871168]
[1766410235759,0.00191313,126.78,126.75,3.52871168]
[1766410237072,0.00191313,126.78,126.75,10.63261168]
[1766410237970,0.00191313,126.78,126.76,3.47]
[1766410238171,0.00191313,126.78,126.76,10.5734]
[1766410238373,0.00191313,126.78,126.77,3.47]
[1766410242571,0.00191313,126.78,126.75,3.52871168]
[1766410251077,0.00191313,126.78,126.75,10.63261168]
[1766410251274,0.00191313,126.78,126.76,3.47]
[1766410254776,0.00191313,126.78,126.75,10.63261168]
[1766410255576,0.00191313,126.78,126.76,3.47]
[1766410263288,2.10370269,126.81,126.77,3.47]
[1766410264286,0.0602882,126.8,126.78,0.05430224]
[1766410271795,10.5716882,126.8,126.78,0.00430224]
[1766410271987,10.5716882,126.8,126.74,3.29]
[1766410272293,7.1616882,126.8,126.74,3.29]
[1766410272885,0.0602882,126.8,126.74,10.3945]
[1766410273184,0.0602882,126.8,126.76,0.0593812]
[1766410275098,5.51370269,126.79,126.76,0.0593812]
[1766410275287,5.51370269,126.77,126.68,3.29]
[1766410275798,2.10370269,126.75,126.69,3.29]
[1766410276300,0.0034545,126.73,126.71,3.3440578]
[1766410279490,102.30580269,126.79,126.71,3.3440578]
[1766410279491,2.10370269,126.79,126.73,3.29]
[1766410280397,0.05265853,126.77,126.75,0.0551694]
[1766410281391,0.00265853,126.77,126.75,3.3451694]
[1766410282601,0.00265853,126.77,126.76,3.29]
[1766410286304,5.51370269,126.82,126.76,3.29]
[1766410286496,5.51370269,126.82,126.77,3.29]
[1766410287311,0.05728378,126.81,126.78,0.05214875]
[1766410290811,3.29,126.8,126.75,10.5636]
[1766410291394,10.3901,126.82,126.75,10.5636]
[1766410291607,12.49380269,126.82,126.76,3.46]
[1766410291816,0.05076961,126.8,126.78,0.05936478]
[1766410294022,2.1544723,126.8,126.74,10.5642]
[1766410294222,2.10370269,126.78,126.74,3.46]
[1766410294412,5.39370269,126.78,126.71,3.46]
[1766410294705,5.39370269,126.78,126.73,3.46]
[1766410294913,2.10370269,126.78,126.73,3.46]
[1766410295105,0.05393328,126.77,126.74,3.51758563]
[1766410296611,0.00393328,126.77,126.74,3.51758563]
[1766410297511,0.00393328,126.77,126.74,10.62198563]
[1766410298309,0.00393328,126.77,126.74,3.51758563]
[1766410300806,0.00393328,126.77,126.75,10.4639]
[1766410301510,0.00393328,126.77,126.76,3.36]
[1766410304212,0.00393328,126.77,126.74,10.52198563]
[1766410304416,0.00393328,126.77,126.75,3.36]
[1766410321433,3.39393328,126.77,126.74,0.05758563]
[1766410321734,3.39393328,126.77,126.71,3.36]
[1766410322124,3.39,126.75,126.69,3.36]
[1766410322534,0.05823503,126.73,126.71,0.05890766]
[1766410325731,0.05823503,126.73,126.68,3.31]
[1766410326835,0.05823503,126.73,126.69,10.47642362]
[1766410328038,0.05823503,126.73,126.7,3.31]
[1766410329744,0.05823503,126.73,126.7,10.4167]
[1766410333150,0.05823503,126.73,126.7,3.31]
[1766410334553,0.05823503,126.73,126.69,0.05912362]
[1766410334752,3.35823503,126.73,126.69,0.05912362]
[1766410334952,0.05823503,126.73,126.69,3.36912362]
[1766410338055,10.3917373,126.76,126.69,3.36912362]
[1766410338255,7.1039,126.76,126.69,3.36912362]
[1766410338457,10.4039,126.76,126.69,3.36912362]
[1766410339159,0.05489672,126.74,126.69,10.47612362]
[1766410339369,0.05489672,126.74,126.7,0.05771568]
[1766410343471,0.05489672,126.74,126.7,3.36771568]
[1766410344762,0.05489672,126.74,126.71,3.31]
[1766410347757,0.05489672,126.74,126.7,7.16451568]
[1766410347960,0.05489672,126.74,126.7,0.05771568]
[1766410348268,3.35489672,126.74,126.7,0.05771568]
[1766410348471,10.45959672,126.74,126.7,0.05771568]
[1766410356975,7.1053,126.73,126.7,0.05771568]
[1766410357177,10.3353,126.73,126.7,0.05771568]
[1766410358078,10.3357,126.72,126.66,10.4585]
[1766410358878,10.3357,126.72,126.67,3.35]
[1766410359179,0.05366037,126.71,126.67,3.35]
[1766410359378,0.05366037,126.71,126.68,0.05185879]
[1766410362879,3.28366037,126.71,126.68,0.05185879]
[1766410363289,10.38996037,126.71,126.68,0.05185879]
[1766410364875,10.3368,126.7,126.68,0.00185879]
[1766410365078,10.3368,126.7,126.64,10.4599]
[1766410366085,0.05672047,126.68,126.66,0.04017807]
[1766410367384,3.28672047,126.68,126.6,10.4619]
[1766410367681,3.28672047,126.68,126.57,3.35]
[1766410367682,3.23,126.66,126.57,3.35]
[1766410368278,3.23,126.66,126.58,3.35]
[1766410368581,0.05865401,126.63,126.58,3.35]
[1766410369088,3.28865401,126.63,126.55,7.1148]
[1766410369388,3.28041236,126.6,126.51,3.35]
[1766410369584,0.05324117,126.57,126.51,10.4674]
[1766410369886,93.18,126.62,126.53,3.35]
[1766410370279,96.41,126.62,126.53,3.35]
[1766410370789,0.05087646,126.59,126.56,0.05324118]
[1766410371989,0.05087646,126.59,126.56,3.40324118]
[1766410372188,0.05087646,126.59,126.56,0.05324118]
[1766410372381,0.00087646,126.59,126.56,0.05324118]
[1766410374585,0.00087646,126.59,126.56,0.00324118]
[1766410377280,0.00087646,126.59,126.56,3.35324118]
[1766410380580,0.00087646,126.59,126.57,3.35]
[1766410380783,442.15,126.72,126.58,3.35]
[1766410380784,12.44906367,126.66,126.58,3.35]
[1766410381084,110.5579,126.7,126.56,10.4644]
[1766410381085,3.23,126.63,126.56,10.4644]
[1766410381679,0.0507036,126.61,126.58,0.05411764]
[1766410384096,0.0507036,126.61,126.58,3.40411764]
[1766410385095,0.0007036,126.61,126.58,3.40411764]
[1766410385696,98.66976367,126.67,126.59,3.21]
[1766410385897,3.32,126.66,126.59,3.21]
[1766410386096,5.42976367,126.65,126.59,3.21]
[1766410386291,5.42976367,126.65,126.56,3.21]
[1766410386292,3.32,126.64,126.56,3.21]
[1766410386592,0.06003861,126.61,126.59,0.05280518]
[1766410388694,3.861e-05,126.61,126.59,3.26280518]
[1766410391600,3.861e-05,126.61,126.59,10.37560518]
[1766410392195,3.861e-05,126.61,126.6,3.21]
[1766410392499,93.24,126.67,126.62,3.21]
[1766410393297,0.05015063,126.66,126.63,0.05816107]
[1766410394606,0.00015063,126.66,126.64,3.21]
[1766410394806,0.00015063,126.66,126.63,7.16876107]
[1766410394807,0.00015063,126.66,126.63,0.05816107]
[1766410399010,5.4299143,126.66,126.63,0.05816107]
[1766410400911,2.1099143,126.66,126.63,0.05816107]
[1766410401500,5.4299143,126.66,126.63,0.05816107]
[1766410405214,3.32,126.65,126.58,3.21]
[1766410405408,5.42976367,126.65,126.58,3.21]
[1766410406108,0.05724002,126.63,126.6,0.05056131]
[1766410406717,3.37724002,126.63,126.6,0.00056131]
[1766410407010,2.10976367,126.61,126.54,3.21]
[1766410407211,3.32,126.62,126.55,10.3248]
[1766410407412,5.42976367,126.62,126.55,10.3248]
[1766410408010,0.05477477,126.6,126.57,0.05324386]
[1766410409805,5.70453844,126.6,126.57,0.00324386]
[1766410410221,3.54,126.59,126.57,0.00324386]
[1766410410419,5.64976367,126.58,126.52,10.4068]
[1766410410808,5.64976367,126.58,126.52,3.29]
[1766410411311,0.05731938,126.56,126.54,0.04993026]
[1766410414311,0.05731938,126.56,126.51,7.117]
[1766410414516,0.05731938,126.56,126.5,3.29]
[1766410415722,0.05731938,126.56,126.51,10.3874]
[1766410418124,10.5823,126.61,126.53,3.27]
[1766410418417,2.10976367,126.62,126.54,3.27]
[1766410419023,3.47,126.61,126.54,3.27]
[1766410419225,0.06063884,126.59,126.56,0.05712342]
[1766410420116,93.26,126.64,126.56,3.32712342]
[1766410420117,96.73,126.64,126.56,3.32712342]
[1766410420320,96.73,126.64,126.57,3.27]
[1766410420523,93.26,126.64,126.58,10.3832]
[1766410421128,0.05620055,126.62,126.6,0.05100528]
[1766410432231,7.1088,126.67,126.6,0.05100528]
[1766410432232,5.57976367,126.66,126.6,0.05100528]
[1766410432735,3.47,126.69,126.6,3.32100528]
[1766410432939,3.47,126.69,126.61,3.27]
[1766410433331,0.05190976,126.66,126.64,0.05433176]
[1766410434038,0.00190976,126.66,126.64,0.05433176]
[1766410436143,0.00190976,126.66,126.64,10.43433176]
[1766410438643,3.47,126.7,126.64,10.43433176]
[1766410438644,93.24,126.71,126.65,10.3795]
[1766410438945,95.34976367,126.71,126.65,3.27]
[1766410439339,95.34976367,126.71,126.66,7.109]
[1766410439645,0.05958004,126.7,126.67,0.06039603]
[1766410444940,3.52958004,126.7,126.67,0.06039603]
[1766410445140,3.52958004,126.7,126.63,3.27]
[1766410445446,3.47,126.7,126.63,3.27]
[1766410446048,0.05709668,126.68,126.65,0.05156798]
[1766410447343,0.05709668,126.68,126.63,10.3806]
[1766410447344,0.05709668,126.68,126.63,3.27]
[1766410447652,3.52709668,126.68,126.63,3.27]